bitfinex/quotes_BTCUSD_20241205
["timestamp","ask_amount","ask_price","bid_price","bid_amount"]
[1733438916421,2.44459068,96843.0,96840.0,0.15]
[1733438916620,2.44459068,96843.0,96842.0,0.15]
[1733438916819,2.44459068,96843.0,96842.0,0.25503154]
[1733438917460,2.44453068,96843.0,96842.0,0.25503154]
[1733438920095,2.44447068,96843.0,96842.0,0.25503154]
[1733438921871,2.44441068,96843.0,96842.0,0.25503154]
[1733438922966,2.44441068,96843.0,96830.0,0.15]
[1733438923213,2.44441068,96843.0,96831.0,0.10503154]
[1733438923436,2.44435068,96843.0,96820.0,0.15]
[1733438923669,2.44435068,96843.0,96821.0,0.10503154]
[1733438923908,2.44435068,96843.0,96819.0,1.01533]
[1733438924134,2.44435068,96843.0,96822.0,0.10503154]
[1733438924346,2.44435068,96843.0,96816.0,0.15]
[1733438924569,2.44435068,96843.0,96817.0,0.10503154]
[1733438924994,2.44435068,96843.0,96829.0,0.10503154]
[1733438925205,2.44435068,96843.0,96830.0,0.10503154]
[1733438925436,2.44429068,96843.0,96842.0,0.25503154]
[1733438925888,2.44429068,96843.0,96842.0,0.10503154]
[1733438926114,2.44429068,96843.0,96842.0,0.25503154]
[1733438926333,2.44429068,96843.0,96842.0,0.10503154]
[1733438926573,2.44429068,96843.0,96842.0,0.25503154]
[1733438927240,2.44429068,96843.0,96842.0,0.15503154]
[1733438929478,2.44423068,96843.0,96842.0,0.15503154]
[1733438930129,0.74757765,96843.0,96842.0,0.15503154]
[1733438930338,0.74757765,96843.0,96842.0,0.30503154]
[1733438931021,0.74751765,96843.0,96842.0,0.15503154]
[1733438931248,0.74751765,96843.0,96842.0,0.30503154]
[1733438933699,0.6910369,96843.0,96842.0,0.30503154]
[1733438934134,0.6890369,96843.0,96842.0,0.30503154]
[1733438935676,0.6890369,96843.0,96842.0,0.15503154]
[1733438936043,0.6890369,96843.0,96842.0,0.00503154]
[1733438936252,0.6890369,96843.0,96842.0,0.15503154]
[1733438937487,0.6890369,96843.0,96842.0,0.20760783]
[1733438938632,0.0090369,96843.0,96842.0,0.35760783]
[1733438938833,0.0090369,96843.0,96842.0,0.20760783]
[1733438940949,0.0917369,96843.0,96840.0,0.0017274]
[1733438941255,0.0917369,96843.0,96840.0,0.10675894]
[1733438941469,0.0917369,96843.0,96829.0,0.10257629]
[1733438941640,0.0917369,96843.0,96833.0,0.10257629]
[1733438941842,0.0917369,96843.0,96834.0,0.10503154]
[1733438942068,0.0917369,96843.0,96829.0,0.10257629]
[1733438942273,0.03057226,96842.0,96830.0,0.10503154]
[1733438942610,0.07827226,96841.0,96819.0,0.10257629]
[1733438942808,0.0505413,96841.0,96826.0,0.10257629]
[1733438943023,0.0505413,96841.0,96827.0,0.10503154]
[1733438943233,0.0505413,96841.0,96814.0,0.10257629]
[1733438943440,0.0505413,96841.0,96800.0,0.0059999]
[1733438943441,0.03057344,96840.0,96822.0,0.10257629]
[1733438943790,0.0028413,96840.0,96825.0,0.10257629]
[1733438943993,0.0028413,96840.0,96826.0,0.10503154]
[1733438944193,0.0028413,96840.0,96800.0,0.0059999]
[1733438944194,0.0028413,96840.0,96808.0,0.10257629]
[1733438944529,0.0028413,96840.0,96811.0,0.10257629]
[1733438944530,0.10503154,96839.0,96811.0,0.10257629]
[1733438944719,0.10503154,96839.0,96806.0,0.10257629]
[1733438944949,0.04742371,96837.0,96800.0,0.0059999]
[1733438945179,0.13562082,96836.0,96800.0,0.0059999]
[1733438945351,0.03058928,96835.0,96800.0,0.0059999]
[1733438945557,0.0028413,96839.0,96731.0,0.01075468]
[1733438945558,0.04742371,96803.0,96764.0,0.10257629]
[1733438945787,0.04742371,96803.0,96731.0,0.01075468]
[1733438945788,0.0477,96801.0,96758.0,0.10257629]
[1733438945966,0.0811,96796.0,96752.0,0.10257629]
[1733438946303,0.04742371,96774.0,96734.0,0.10257629]
[1733438946476,0.13691295,96773.0,96734.0,0.10257629]
[1733438946680,0.15938976,96772.0,96734.0,0.10257629]
[1733438946901,0.13691305,96771.0,96734.0,0.10257629]
[1733438947124,0.04742371,96768.0,96725.0,0.10257629]
[1733438947311,0.1288,96772.0,96714.0,0.10257629]
[1733438947312,0.04742371,96754.0,96714.0,0.10257629]
[1733438947464,0.04742371,96749.0,96710.0,0.0017282]
[1733438947673,0.0811,96758.0,96739.0,0.10257629]
[1733438947878,0.0811,96758.0,96746.0,0.10257629]
[1733438948061,0.0811,96758.0,96732.0,0.10257629]
[1733438948287,0.0811,96758.0,96737.0,0.10257629]
[1733438948474,0.10503154,96757.0,96726.0,0.10257629]
[1733438948903,0.10503154,96757.0,96722.0,0.10257629]
[1733438949320,0.10503154,96757.0,96730.0,0.0017276]
[1733438950143,0.0811,96758.0,96738.0,0.10257629]
[1733438950359,0.10503154,96756.0,96724.0,0.10257629]
[1733438950555,0.0448,96708.0,96656.0,0.10257629]
[1733438950754,0.04742371,96704.0,96680.0,0.000229]
[1733438950968,0.04742371,96701.0,96680.0,0.000229]
[1733438951173,0.10632428,96700.0,96680.0,0.000229]
[1733438951395,0.0448,96708.0,96680.0,0.000229]
[1733438951606,0.0497,96706.0,96680.0,0.000229]
[1733438951819,0.04742371,96701.0,96680.0,0.000229]
[1733438952022,0.10503154,96690.0,96644.0,0.10257629]
[1733438952371,0.04742371,96680.0,96650.0,0.001717]
[1733438952572,0.1294,96653.0,96650.0,0.001717]
[1733438952794,0.1294,96653.0,96613.0,1.998]
[1733438952795,0.0797,96651.0,96613.0,1.998]
[1733438952963,0.15374866,96650.0,96613.0,1.998]
[1733438953602,0.04742371,96644.0,96613.0,1.998]
[1733438953813,0.0797,96651.0,96613.0,1.998]
[1733438953814,0.04742371,96641.0,96613.0,1.998]
[1733438954020,0.3,96756.0,96613.0,1.998]
[1733438954021,0.23443154,96633.0,96613.0,1.998]
[1733438954273,0.00129358,96640.0,96613.0,1.998]
[1733438954274,0.04742371,96615.0,96613.0,1.5356]
[1733438954471,0.11552371,96541.0,96477.0,0.03447629]
[1733438954683,0.11552371,96541.0,96453.0,0.0789]
[1733438954684,0.00129497,96540.0,96495.0,0.03447629]
[1733438954886,0.0012948,96539.0,96492.0,0.03447629]
[1733438955117,0.0012948,96539.0,96453.0,0.0789]
[1733438955340,0.10503154,96536.0,96492.0,0.03447629]
[1733438955564,0.00129495,96535.0,96500.0,0.07447629]
[1733438955764,0.0379,96578.0,96500.0,0.07447629]
[1733438955765,0.00129483,96575.0,96524.0,0.10503154]
[1733438955977,0.11552371,96597.0,96545.0,0.03447629]
[1733438956150,0.0876,96610.0,96506.0,0.0789]
[1733438956151,0.10503154,96593.0,96547.0,0.03447629]
[1733438956422,0.0876,96610.0,96567.0,0.03447629]
[1733438956423,0.01063258,96592.0,96567.0,0.03447629]
[1733438956610,0.00129412,96604.0,96554.0,0.03447629]
[1733438956611,0.00434372,96604.0,96554.0,0.03447629]
[1733438956830,0.0497,96610.0,96577.0,0.03447629]
[1733438957030,0.0379,96638.0,96445.0,0.05189419]
[1733438957031,0.10503154,96609.0,96569.0,0.03447629]
[1733438957244,0.11552371,96629.0,96570.0,0.10606671]
[1733438957427,0.10632209,96628.0,96580.0,0.03447629]
[1733438957665,0.0031365,96635.0,96584.0,0.10503154]
[1733438957820,0.10503154,96627.0,96585.0,0.00103503]
[1733438958036,0.10503154,96627.0,96586.0,0.10606657]
[1733438958218,0.00129055,96640.0,96599.0,0.03447629]
[1733438958414,0.00129055,96640.0,96554.0,0.0499]
[1733438958415,0.10503154,96639.0,96600.0,0.10606638]
[1733438958618,0.0494,96673.0,96607.0,0.03447629]
[1733438958846,0.10503154,96661.0,96608.0,0.14054258]
[1733438959147,0.0379,96684.0,96608.0,0.14054258]
[1733438959148,0.11552371,96693.0,96636.0,0.03447629]
[1733438959349,0.0494,96698.0,96644.0,0.03447629]
[1733438959350,0.00129055,96692.0,96644.0,0.03447629]
[1733438959589,0.00129055,96697.0,96645.0,0.00103436]
[1733438959698,0.0982,96794.0,96658.0,0.03447629]
[1733438959699,0.12294352,96696.0,96658.0,0.03447629]
[1733438959931,0.10503154,96696.0,96661.0,0.03447629]
[1733438960147,0.10503154,96696.0,96663.0,0.03447629]
[1733438960362,0.10503154,96696.0,96664.0,0.00103416]
[1733438961452,0.11552371,96740.0,96671.0,0.13950783]
[1733438961641,0.0494,96766.0,96659.0,0.0499]
[1733438961642,0.10503154,96724.0,96689.0,0.03447629]
[1733438961851,0.11576375,96724.0,96690.0,0.10606543]
[1733438962075,0.00303927,96739.0,96696.0,0.03447629]
[1733438962281,0.10603154,96730.0,96697.0,0.10606534]
[1733438962502,0.10503154,96729.0,96697.0,0.10606534]
[1733438963866,0.001,96730.0,96719.0,0.03447629]
[1733438964085,0.001,96730.0,96720.0,0.10606512]
[1733438964305,0.001,96730.0,96723.0,0.03447629]
[1733438964530,0.001,96730.0,96724.0,0.00103358]
[1733438964753,0.10503154,96729.0,96672.0,0.10947629]
[1733438964953,0.02344608,96728.0,96689.0,0.03447629]
[1733438965177,0.10503154,96727.0,96690.0,0.10606539]
[1733438965385,0.10632209,96727.0,96690.0,0.00103385]
[1733438965601,0.10503154,96721.0,96683.0,0.00093387]
[1733438965818,0.00129263,96720.0,96684.0,0.10606565]
[1733438966024,0.10503154,96719.0,96684.0,0.10606565]
[1733438966636,0.10503154,96718.0,96684.0,0.10606565]
[1733438967014,0.10503154,96718.0,96684.0,0.00103411]
[1733438967172,0.10503154,96718.0,96679.0,0.00103397]
[1733438967397,0.10503154,96718.0,96680.0,0.00103403]
[1733438967608,0.10503154,96717.0,96681.0,0.03447629]
[1733438967844,0.001,96730.0,96685.0,0.03447629]
[1733438968049,0.001,96730.0,96672.0,0.075]
[1733438968050,0.10503154,96729.0,96691.0,0.03447629]
[1733438968251,0.10503154,96729.0,96694.0,0.03447629]
[1733438968459,0.10503154,96729.0,96695.0,0.10606537]
[1733438968790,0.001,96730.0,96698.0,0.10503154]
[1733438969000,0.001,96730.0,96695.0,0.00103383]
[1733438969001,0.10503154,96699.0,96631.0,0.075]
[1733438969396,0.10503154,96657.0,96612.0,0.0499]
[1733438969633,0.01179611,96698.0,96614.0,0.03447629]
[1733438969634,0.10503154,96656.0,96614.0,0.03447629]
[1733438969874,0.00538147,96701.0,96655.0,0.03447629]
[1733438970087,0.0012926,96728.0,96674.0,0.03447629]
[1733438970330,0.0012926,96728.0,96681.0,0.03447629]
[1733438970557,0.00129242,96744.0,96690.0,0.03447629]
[1733438970764,0.10503154,96727.0,96703.0,0.03447629]
[1733438970969,0.10503154,96727.0,96697.0,0.03447629]
[1733438971212,0.00129228,96753.0,96705.0,0.03447629]
[1733438971427,0.00129181,96782.0,96721.0,0.03447629]
[1733438971656,0.00310505,96770.0,96721.0,0.13950783]
[1733438971864,0.00310505,96770.0,96724.0,0.03447629]
[1733438972068,0.00129191,96769.0,96724.0,0.03447629]
[1733438972287,0.11552371,96763.0,96712.0,0.03447629]
[1733438972537,0.11552371,96758.0,96705.0,0.0499]
[1733438972759,0.0008658,96720.0,96705.0,0.0499]
[1733438973178,0.0008658,96720.0,96709.0,0.03447629]
[1733438973399,0.0008658,96720.0,96716.0,0.03447629]
[1733438973604,0.0008658,96720.0,96706.0,0.03447629]
[1733438973808,0.10503154,96719.0,96704.0,0.075]
[1733438974439,0.10503154,96719.0,96681.0,0.0816]
[1733438974647,0.00129246,96718.0,96681.0,0.0816]
[1733438974860,0.10503154,96717.0,96681.0,0.0816]
[1733438975113,0.10503154,96694.0,96651.0,0.11607629]
[1733438975316,0.00129289,96693.0,96651.0,0.0816]
[1733438975527,0.10503154,96682.0,96651.0,0.0816]
[1733438975742,0.00129305,96681.0,96651.0,0.0816]
[1733438975956,0.10503154,96667.0,96628.0,0.0816]
[1733438976166,0.10503154,96667.0,96630.0,0.03447629]
[1733438976379,0.01063244,96692.0,96617.0,0.0477]
[1733438976380,0.10503154,96663.0,96617.0,0.03447629]
[1733438976600,0.10503154,96654.0,96617.0,0.03447629]
[1733438977025,0.10503154,96654.0,96606.0,0.0816]
[1733438977026,0.10503154,96654.0,96620.0,0.03447629]
[1733438977250,0.10503154,96654.0,96624.0,0.03447629]
[1733438977461,0.10503154,96654.0,96606.0,0.0816]
[1733438977462,0.10503154,96654.0,96618.0,0.03447629]
[1733438977679,0.10503154,96654.0,96618.0,0.01099389]
[1733438977898,0.00129333,96679.0,96606.0,0.0816]
[1733438977899,0.10503154,96653.0,96621.0,0.01099389]
[1733438978134,0.10503154,96653.0,96625.0,0.01099389]
[1733438978345,0.00129333,96679.0,96636.0,0.01099389]
[1733438978572,0.10503154,96678.0,96636.0,0.01099389]
[1733438978781,0.10503154,96678.0,96626.0,0.10503154]
[1733438978782,0.10503154,96677.0,96652.0,0.01099389]
[1733438979621,0.10503154,96677.0,96637.0,0.1293]
[1733438979622,0.10503154,96677.0,96649.0,0.01099389]
[1733438980264,0.001,96704.0,96679.0,0.01099389]
[1733438980476,0.10503154,96700.0,96657.0,0.01099389]
[1733438980676,0.10503154,96700.0,96663.0,0.01099389]
[1733438980893,0.10503154,96700.0,96669.0,0.01099389]
[1733438981111,0.10503154,96700.0,96674.0,0.01099389]
[1733438981334,0.001,96704.0,96650.0,0.0816]
[1733438981335,0.001,96704.0,96679.0,0.01099389]
[1733438981552,0.10503154,96703.0,96674.0,0.01099389]
[1733438981765,0.001,96704.0,96686.0,0.01099389]
[1733438981967,0.10503154,96703.0,96681.0,0.01099389]
[1733438982389,0.001,96704.0,96686.0,0.01099389]
[1733438982550,0.001,96704.0,96682.0,0.15273154]
[1733438982551,0.001,96704.0,96682.0,0.0477]
[1733438982751,0.10503154,96703.0,96682.0,0.0477]
[1733438983014,0.001,96704.0,96682.0,0.05869389]
[1733438983238,0.10503154,96683.0,96638.0,0.01099389]
[1733438983360,0.10503154,96683.0,96640.0,0.01099389]
[1733438983561,0.10503154,96683.0,96646.0,0.01099389]
[1733438983761,0.10503154,96683.0,96647.0,0.10503154]
[1733438984127,0.10503154,96683.0,96606.0,0.15]
[1733438984128,0.001,96703.0,96671.0,0.01099389]
[1733438984360,0.001,96703.0,96702.0,0.01099389]
[1733438984563,0.001,96703.0,96702.0,0.19755476]
[1733438985555,0.001865,96730.0,96719.0,0.01092322]
[1733438985731,0.001865,96730.0,96717.0,0.0477]
[1733438986547,0.001865,96730.0,96719.0,0.01092322]
[1733438986696,0.001865,96730.0,96719.0,0.11595476]
[1733438988526,0.001865,96730.0,96717.0,0.0477]
[1733438988730,0.001865,96730.0,96719.0,0.01092322]
[1733438989466,0.001865,96730.0,96718.0,0.04092322]
[1733438989662,0.001865,96730.0,96719.0,0.11595476]
[1733438989827,0.001865,96730.0,96719.0,0.01092322]
[1733438990026,0.001865,96730.0,96719.0,0.11595476]
[1733438990231,0.10589734,96720.0,96653.0,0.15]
[1733438990465,0.11691363,96719.0,96643.0,0.0801]
[1733438990692,0.1063239,96719.0,96643.0,0.0801]
[1733438991110,0.0008658,96720.0,96698.0,0.10503154]
[1733438991313,0.0008658,96720.0,96700.0,0.10503154]
[1733438991953,0.0008658,96720.0,96719.0,0.0007]
[1733438992161,0.0008658,96720.0,96719.0,0.10573154]
[1733438992934,0.0008658,96720.0,96719.0,0.18583154]
[1733438993648,0.0008658,96720.0,96719.0,0.0808]
[1733438994367,0.0008658,96720.0,96719.0,0.18583154]
[1733438994502,0.0008658,96720.0,96719.0,0.0808]
[1733438994713,0.00129197,96812.0,96722.0,0.15]
[1733438994917,0.1979,96826.0,96719.0,0.18583154]
[1733438994918,0.03059736,96799.0,96755.0,0.10503154]
[1733438995087,0.03059736,96798.0,96755.0,0.10503154]
[1733438995416,0.00129135,96825.0,96755.0,0.10503154]
[1733438995417,0.0030817,96815.0,96755.0,0.10503154]
[1733438996210,0.10503154,96799.0,96755.0,0.10503154]
[1733438996412,0.0030817,96815.0,96764.0,0.10503154]
[1733438996618,0.0479,96826.0,96769.0,0.10503154]
[1733438996821,0.0008662,96830.0,96769.0,0.10503154]
[1733438997083,0.00307707,96827.0,96769.0,0.10503154]
[1733438998026,0.0008662,96830.0,96770.0,0.0801]
[1733438998229,0.0008662,96830.0,96771.0,0.10503154]
[1733438998654,0.0008662,96830.0,96770.0,0.084226]
[1733438998655,0.0008662,96830.0,96793.0,0.10503154]
[1733438999354,0.0008662,96830.0,96795.0,0.10503154]
[1733438999556,0.0008662,96830.0,96798.0,0.10503154]
[1733438999763,0.0008662,96830.0,96799.0,0.0801]
[1733438999967,0.0008662,96830.0,96799.0,0.18513154]
[1733439000816,0.0008662,96830.0,96800.0,0.10503154]
[1733439001029,0.0008662,96830.0,96801.0,0.01956347]
[1733439001239,0.0059693,96843.0,96802.0,0.10503154]
[1733439001917,0.11100084,96843.0,96803.0,0.047]
[1733439002143,0.10503154,96842.0,96804.0,0.10503154]
[1733439002346,0.0059693,96843.0,96804.0,0.10503154]
[1733439002554,0.0059693,96843.0,96805.0,0.02497345]
[1733439002690,0.0059693,96843.0,96806.0,0.10503154]
[1733439003314,0.0059693,96843.0,96806.0,0.05357787]
[1733439005568,0.0059693,96843.0,96806.0,0.02727787]
[1733439007261,0.0059693,96843.0,96815.0,0.03]
[1733439007462,0.0059693,96843.0,96815.0,0.00427988]
[1733439008229,0.0059693,96843.0,96806.0,0.02727787]
[1733439008592,0.10503154,96842.0,96807.0,0.00992513]
[1733439008815,0.10503154,96842.0,96803.0,0.047]
[1733439009048,0.0059693,96843.0,96812.0,0.10503154]
[1733439009240,0.0008599,96850.0,96840.0,0.0789]
[1733439009470,0.0008599,96850.0,96841.0,0.10503154]
[1733439009695,0.0008599,96850.0,96842.0,0.01839315]
[1733439009912,0.0008599,96850.0,96809.0,0.548]
[1733439009913,0.10503154,96849.0,96809.0,0.548]
[1733439010134,0.10503154,96849.0,96789.0,0.0789]
[1733439010135,0.10503154,96844.0,96789.0,0.0789]
[1733439010360,0.10503154,96844.0,96790.0,0.10503154]
[1733439010838,0.00129079,96843.0,96790.0,0.10503154]
[1733439011046,0.10503154,96831.0,96789.0,0.0789]
[1733439011248,0.10503154,96831.0,96790.0,0.10503154]
[1733439011462,0.0012909,96830.0,96789.0,0.0789]
[1733439011674,0.00129107,96829.0,96789.0,0.0789]
[1733439011892,0.1508599,96850.0,96789.0,0.0789]
[1733439011893,0.10503154,96828.0,96789.0,0.0789]
[1733439012101,0.10632261,96828.0,96789.0,0.0789]
[1733439012316,0.01063226,96827.0,96789.0,0.00169998]
[1733439012529,0.10632263,96826.0,96789.0,0.00169998]
[1733439013803,0.10632263,96826.0,96725.0,0.5431]
[1733439013804,0.10632263,96826.0,96756.0,0.15]
[1733439014047,0.10632263,96826.0,96771.0,0.10503154]
[1733439014485,0.15,96893.0,96809.0,0.10503154]
[1733439014699,0.00306056,96875.0,96810.0,0.02552557]
[1733439014920,0.10503154,96849.0,96811.0,0.10503154]
[1733439015142,0.10503154,96849.0,96773.0,0.5431]
[1733439015143,0.00113338,96848.0,96812.0,0.00103254]
[1733439015360,0.10503154,96824.0,96773.0,0.00103288]
[1733439015570,0.10503154,96818.0,96773.0,0.00103288]
[1733439015796,0.10503154,96814.0,96771.0,0.00103299]
[1733439016017,0.10503154,96810.0,96771.0,0.00103299]
[1733439016235,0.00113338,96809.0,96771.0,0.00103299]
[1733439016449,0.10503154,96808.0,96771.0,0.00103299]
[1733439016656,0.10503154,96803.0,96771.0,0.00103299]
[1733439016866,0.10503154,96792.0,96750.0,0.00103309]
[1733439017118,0.10616492,96791.0,96745.0,0.00103327]
[1733439017375,0.10503154,96775.0,96745.0,0.00103327]
[1733439017578,0.10503154,96772.0,96728.0,0.00103333]
[1733439017803,0.00308525,96791.0,96728.0,0.00103333]
[1733439017804,0.10616492,96771.0,96728.0,0.00103333]
[1733439018018,0.10616492,96771.0,96726.0,0.00103359]
[1733439018221,0.10503154,96755.0,96703.0,0.07623361]
[1733439018346,0.00113338,96754.0,96703.0,0.07623361]
[1733439018556,0.10503154,96752.0,96703.0,0.07623361]
[1733439018775,0.10503154,96747.0,96703.0,0.07623361]
[1733439018994,0.10503154,96740.0,96703.0,0.07623361]
[1733439019238,0.10503154,96728.0,96703.0,0.00103361]
[1733439019410,0.10503154,96728.0,96690.0,0.00173]
[1733439019411,0.10616492,96727.0,96690.0,0.00173]
[1733439019690,0.10503154,96727.0,96701.0,0.001034]
[1733439019891,0.00113338,96772.0,96720.0,0.0752]
[1733439020095,0.10503154,96767.0,96721.0,0.01343355]
[1733439020234,0.00113338,96766.0,96721.0,0.01343355]
[1733439020430,0.10503154,96765.0,96721.0,0.01343355]
[1733439020663,0.00113338,96764.0,96721.0,0.11846509]
[1733439020874,0.00302238,96773.0,96721.0,0.11846509]
[1733439020875,0.10503154,96763.0,96721.0,0.11846509]
[1733439021067,0.10503154,96763.0,96722.0,0.02424651]
[1733439021295,0.10503154,96763.0,96723.0,0.10606504]
[1733439021695,0.00113338,96798.0,96723.0,0.10606504]
[1733439021908,0.10503154,96786.0,96723.0,0.10606504]
[1733439022079,0.00113338,96785.0,96723.0,0.10606504]
[1733439022329,0.11564803,96784.0,96724.0,0.04167116]
[1733439022673,0.11564803,96784.0,96725.0,0.10606487]
[1733439023290,0.10503154,96784.0,96725.0,0.10606487]
[1733439023509,0.10503154,96784.0,96728.0,0.10503154]
[1733439023696,0.10503154,96784.0,96729.0,0.00103323]
[1733439024013,0.10503154,96784.0,96724.0,0.04167116]
[1733439024014,0.10503154,96784.0,96732.0,0.10503154]
[1733439024232,0.10503154,96784.0,96733.0,0.0010332]
[1733439024378,0.01050315,96783.0,96734.0,0.12776029]
[1733439024560,0.00113338,96819.0,96741.0,0.10503154]
[1733439024762,0.10503154,96810.0,96743.0,0.0481]
[1733439025016,0.10503154,96810.0,96744.0,0.10606462]
[1733439025017,0.00113338,96809.0,96744.0,0.10606462]
[1733439025316,0.10503154,96808.0,96744.0,0.10606462]
[1733439025560,0.00113338,96807.0,96744.0,0.10606462]
[1733439025770,0.11564803,96806.0,96745.0,0.02424651]
[1733439025996,0.00113338,96805.0,96746.0,0.10606463]
[1733439026162,0.10503154,96804.0,96746.0,0.10606463]
[1733439026388,0.00113338,96829.0,96762.0,0.10503154]
[1733439026589,0.0756,96838.0,96763.0,0.00103287]
[1733439026590,0.10503154,96803.0,96763.0,0.00103287]
[1733439026754,0.10503154,96803.0,96764.0,0.10606456]
[1733439027769,0.00428945,96829.0,96764.0,0.10606456]
[1733439027955,0.10616492,96828.0,96764.0,0.10606456]
[1733439028853,0.10503154,96820.0,96764.0,0.10606456]
[1733439029022,0.10616492,96819.0,96764.0,0.10606456]
[1733439029222,0.10616492,96819.0,96773.0,0.03]
[1733439029466,0.01061649,96818.0,96774.0,0.00103299]
[1733439029682,0.10616492,96817.0,96775.0,0.00103299]
[1733439030115,0.10503154,96817.0,96776.0,0.18023154]
[1733439030324,0.10503154,96817.0,96777.0,0.00103288]
[1733439030551,0.10503154,96817.0,96776.0,0.18023154]
[1733439030552,0.00113338,96816.0,96778.0,0.00103288]
[1733439030745,0.10503154,96815.0,96778.0,0.10606442]
[1733439030919,0.10503154,96810.0,96778.0,0.00103288]
[1733439031519,0.00113338,96809.0,96778.0,0.00103288]
[1733439031711,0.10503154,96809.0,96779.0,0.10503154]
[1733439032100,0.10503154,96808.0,96780.0,0.00103294]
[1733439032321,0.03416112,96843.0,96784.0,0.15]
[1733439032526,0.10503154,96807.0,96784.0,0.15]
[1733439032760,0.10503154,96807.0,96777.0,0.00103298]
[1733439032761,0.10503154,96807.0,96785.0,0.00103298]
[1733439032946,0.10503154,96807.0,96760.0,0.0017286]
[1733439032947,0.10503154,96796.0,96760.0,0.0017286]
[1733439033147,0.10503154,96793.0,96760.0,0.0017286]
[1733439033436,0.10503154,96782.0,96760.0,0.0017286]
[1733439033572,0.10503154,96779.0,96760.0,0.0017286]
[1733439033785,0.10503154,96775.0,96760.0,0.0017286]
[1733439034185,0.10503154,96775.0,96680.0,0.15173]
[1733439034186,0.0107,96774.0,96695.0,0.15]
[1733439034404,0.0107,96774.0,96696.0,0.00103393]
[1733439034405,0.10503154,96730.0,96696.0,0.00103393]
[1733439034614,1.00037315,96773.0,96687.0,0.001034]
[1733439034615,0.10503154,96726.0,96687.0,0.001034]
[1733439035021,0.10503154,96725.0,96687.0,0.001034]
[1733439035431,0.10503154,96724.0,96687.0,0.001034]
[1733439035632,0.10503154,96724.0,96686.0,0.00103405]
[1733439035863,0.10503154,96723.0,96685.0,0.0765]
[1733439036126,0.10503154,96720.0,96680.0,0.00276407]
[1733439036322,0.10503154,96720.0,96690.0,0.0016598]
[1733439036567,0.10503154,96719.0,96690.0,0.0016598]
[1733439037908,0.10503154,96718.0,96690.0,0.0016598]
[1733439038237,0.10503154,96717.0,96690.0,0.0016598]
[1733439038615,0.10503154,96717.0,96690.0,0.0011598]
[1733439038824,0.10503154,96711.0,96690.0,0.0011598]
[1733439039029,0.10503154,96708.0,96690.0,0.0011598]
[1733439039234,0.10503154,96702.0,96690.0,0.0011598]
[1733439044186,0.10503154,96702.0,96663.0,0.15]
[1733439044387,0.10503154,96702.0,96635.0,0.0765]
[1733439044388,0.01050315,96701.0,96671.0,0.00103429]
[1733439044630,0.10503154,96700.0,96665.0,0.00103428]
[1733439045893,0.10503154,96699.0,96659.0,0.15]
[1733439046045,0.10503154,96699.0,96663.0,0.15]
[1733439046250,0.10503154,96699.0,96654.0,0.15]
[1733439046452,0.0015,96711.0,96636.0,0.00103428]
[1733439046453,0.10503154,96675.0,96636.0,0.15103433]
[1733439046684,0.10503154,96672.0,96638.0,0.15]
[1733439046858,0.10503154,96672.0,96641.0,0.15]
[1733439047056,0.10503154,96672.0,96642.0,0.00103452]
[1733439047258,0.10503154,96671.0,96642.0,0.00103452]
[1733439047465,0.10503154,96671.0,96635.0,0.0765]
[1733439047466,0.10503154,96671.0,96636.0,0.00103465]
[1733439047664,0.10503154,96665.0,96635.0,0.0765]
[1733439047874,0.10503154,96665.0,96637.0,0.15]
[1733439048080,0.10503154,96665.0,96638.0,0.00103456]
[1733439048276,0.00308208,96700.0,96646.0,0.15]
[1733439048482,0.10503154,96685.0,96647.0,0.00103448]
[1733439048684,0.10503154,96685.0,96648.0,0.00103448]
[1733439049244,0.0451,96701.0,96636.0,0.00103448]
[1733439049245,0.10503154,96673.0,96636.0,0.00103448]
[1733439050748,0.10503154,96665.0,96635.0,0.0765]
[1733439050955,0.01050315,96664.0,96635.0,0.0765]
[1733439051158,0.10503154,96663.0,96630.0,0.0010346]
[1733439051531,0.10503154,96663.0,96626.0,0.00103469]
[1733439052146,0.10503154,96658.0,96626.0,0.00103469]
[1733439052479,0.10503154,96658.0,96621.0,0.00103475]
[1733439052764,0.01050315,96657.0,96625.0,0.15]
[1733439052911,0.10503154,96656.0,96626.0,0.00103468]
[1733439053125,0.10503154,96656.0,96617.0,0.0757]
[1733439053126,0.10503154,96656.0,96633.0,0.15]
[1733439053314,0.10503154,96656.0,96617.0,0.0757]
[1733439053315,0.10503154,96656.0,96620.0,0.002764]
[1733439053518,0.10503154,96656.0,96621.0,0.00103471]
[1733439053765,0.01050315,96655.0,96630.0,0.0017274]
[1733439054088,0.10503154,96654.0,96630.0,0.0017274]
[1733439054929,0.01931629,96637.0,96578.0,0.13068371]
[1733439055094,0.12434783,96637.0,96587.0,0.10503154]
[1733439055326,0.12434783,96637.0,96588.0,0.00103479]
[1733439055552,0.12434783,96637.0,96589.0,0.11563817]
[1733439055788,0.12434783,96637.0,96590.0,0.00103479]
[1733439055997,0.12434783,96637.0,96591.0,0.10503154]
[1733439056196,0.12304783,96637.0,96592.0,0.00103479]
[1733439056414,0.01931629,96634.0,96593.0,0.10503154]
[1733439056635,0.10503154,96633.0,96594.0,0.01270213]
[1733439056834,0.10503154,96633.0,96595.0,0.10503154]
[1733439057104,0.10503154,96633.0,96596.0,0.00103483]
[1733439057306,0.10503154,96633.0,96597.0,0.10503154]
[1733439057549,0.10503154,96633.0,96598.0,0.00103483]
[1733439057746,0.10503154,96633.0,96599.0,0.10503154]
[1733439057959,0.10503154,96633.0,96600.0,0.00103483]
[1733439058106,0.10503154,96633.0,96601.0,0.10503154]
[1733439058308,0.01931629,96643.0,96602.0,0.00103483]
[1733439058519,0.01931629,96637.0,96603.0,0.10503154]
[1733439058758,0.12434783,96636.0,96604.0,0.01921145]
[1733439058964,0.01931629,96635.0,96605.0,0.10503154]
[1733439059291,0.12434783,96634.0,96606.0,0.00103481]
[1733439059474,0.12434783,96634.0,96600.0,0.00103482]
[1733439059773,0.12434783,96634.0,96601.0,0.10503154]
[1733439060004,0.12434783,96634.0,96602.0,0.01921146]
[1733439060172,0.12434783,96634.0,96603.0,0.10503154]
[1733439060326,0.12434783,96634.0,96604.0,0.00103483]
[1733439060966,0.11934783,96634.0,96604.0,0.00103483]
[1733439064965,0.11934783,96634.0,96604.0,0.00096409]
[1733439065406,0.01193478,96633.0,96604.0,0.00096409]
[1733439065619,0.10503154,96633.0,96604.0,0.00096409]
[1733439066004,0.12434783,96632.0,96604.0,0.00096409]
[1733439066252,0.12434783,96632.0,96600.0,0.0017292]
[1733439066253,0.12434783,96632.0,96601.0,0.00096411]
[1733439066494,0.12434783,96632.0,96601.0,0.10599565]
[1733439066732,0.12434783,96632.0,96602.0,0.01834248]
[1733439066941,0.12434783,96632.0,96603.0,0.00096411]
[1733439067381,0.01931629,96629.0,96603.0,0.00096411]